Cogmind - Beta 15 @@@ ROGUE MODE // 2025.06.03 @ 19:35:02 Player: SuperSwiss Result: Self-destructed Performance ------------- Evolutions (1) 500 Regions Visited (5) 1000 Robots Destroyed (65) 325 Value Destroyed (1456) 1456 Prototype IDs (23) 460 Alien Tech Used (0) 0 Bonus (300) 300 TOTAL SCORE: 4041 Bonus ------- Aligned with FarCom 300 Cogmind --------- Core Integrity 259/400 Matter 281/300 Energy 265/265 System Corruption 1% Temperature Cool (0) Movement Rolling (155) Ox5 Location -9/Exiles Parts ------- > --- POWER (1) -------- Improved Ion Engine > --- PROPULSION (2) --- Wheel Wheel > --- UTILITY (4) ------ Huge Storage Unit Medium Armor Plating Hardened Light Armor Plating Improved Light Armor Plating > --- WEAPON (2) ------- (None) > --- INVENTORY (25) --- Backup Power III Backup Power III Nuclear Core Reinforced Deuterium Engine Fission Core Improved Treads Improved Treads Improved Terrain Scanner Advanced Terrain Scan Processor Weapon Cycler Microactuators Improved Light Armor Plating Improved Light Armor Plating Hacking Suite Light EM Pulse Cannon Light EM Pulse Cannon Shotgun Shotgun Shotgun Shotgun Rocket Launcher Mini Grenade Launcher Datajack Mining Laser Plasma Cutter Peak State ------------ > --- POWER ------------ Improved Ion Engine > --- PROPULSION ------- Wheel Wheel > --- UTILITY ---------- Huge Storage Unit Medium Armor Plating Hardened Light Armor Plating Improved Light Armor Plating > --- WEAPON ----------- Light EM Pulse Cannon Improved Light Cannon > --- INVENTORY -------- Backup Power III Backup Power III Improved Treads Improved Terrain Scanner Advanced Terrain Scan Processor Weapon Cycler Microactuators Improved Light Armor Plating Improved Light Armor Plating Improved Light Armor Plating Hacking Suite Light EM Pulse Cannon Light EM Pulse Cannon Light EM Pulse Cannon Shotgun Shotgun Shotgun Shotgun Shotgun Rocket Launcher Mini Grenade Launcher Datajack Mining Laser Plasma Cutter Mining Claw [Rating: 22] Favorites ----------- Power Improved Ion Engine Engine Improved Ion Engine Power Core Light Nuclear Core Propulsion Wheel Treads Light Treads Wheel Wheel Utility Huge Storage Unit Device Seismic Detector Storage Huge Storage Unit Protection Medium Armor Plating Weapon Light EM Pulse Cannon Energy Gun EM Pulse Gun Energy Cannon Light EM Pulse Cannon Ballistic Gun Light Assault Rifle Ballistic Cannon Improved Light Cannon Special Weapon Mining Laser Build | -11 -10 -10 -9 -9 -9 ------- Run | Yrd Mat Min Mat Min Exi Slots Evolved 2 | . . . 2 . . Power . | . . . . . . Propulsion . | . . . . . . Utility 2 | . . . 2 . . Weapon . | . . . . . . Parts Attached 38 | 7 9 2 20 . . Power 6 | 1 2 . 3 . . Engine 5 | 1 1 . 3 . . Core 1 | . 1 . . . . Reactor . | . . . . . . Propulsion 9 | 2 3 1 3 . . Treads 2 | 2 . . . . . Leg . | . . . . . . Wheel 7 | . 3 1 3 . . Hover . | . . . . . . Flight . | . . . . . . Utility 10 | 2 3 . 5 . . Device 3 | 1 . . 2 . . Storage 4 | 1 3 . . . . Processor . | . . . . . . Hackware . | . . . . . . Protection 3 | . . . 3 . . Artifact . | . . . . . . Weapon 13 | 2 1 1 9 . . Energy Gun 4 | . 1 1 2 . . Energy Cannon 4 | . . . 4 . . Ballistic Gun 3 | 2 . . 1 . . Ballistic Cannon 1 | . . . 1 . . Launcher . | . . . . . . Special Weapon 1 | . . . 1 . . Impact Weapon . | . . . . . . Slashing Weapon . | . . . . . . Piercing Weapon . | . . . . . . Special Melee Weapon . | . . . . . . Unidentified Prototypes . | . . . . . . Parts Lost 18 | . 3 2 13 . . Power 3 | . 1 . 2 . . Propulsion 7 | . 1 1 5 . . Utility 2 | . . . 2 . . Weapon 6 | . 1 1 4 . . Highest Loss Streak 5 | . 1 2 5 . . To Critical Strikes . | . . . . . . Average Backups 14 | 1 8 9 15 24 24 Power 2 | . . 1 2 3 4 Propulsion 1 | . 2 2 1 1 2 Utility 2 | . 1 1 2 6 7 Weapon 6 | . 3 4 8 11 9 Tool/Special . | . . . . . . Unused Backups 37 | . 2 2 5 3 25 Power 7 | . . . . 2 5 Propulsion 4 | . . 2 . . 2 Utility 7 | . . . . . 7 Weapon 17 | . 2 . 5 1 9 Tool/Special 2 | . . . . . 2 Average Slot Usage (%) 97 | . 99 100 96 100 83 Engine 10 | . 8 14 10 11 11 Core 1 | . 5 . . . . Treads 5 | . 15 . 1 . . Wheel 18 | . 12 28 19 22 22 Device 12 | . 14 14 16 . . Storage 12 | . 14 14 11 11 11 Protection 12 | . . . 13 33 33 Energy Gun 4 | . 2 26 5 . . Energy Cannon 5 | . . . 7 11 3 Ballistic Gun 8 | . 25 2 1 . . Ballistic Cannon 4 | . . . 5 11 3 Peak Build Rating 22 | 7 10 8 21 22 22 Average Rating 14 | 5 8 7 16 21 19 On Entrance 11 | . 7 8 8 21 22 Naked Turns . | . . . . . . Heaviest Build 110 | 12 89 88 110 110 110 Greatest Support 40 | 40 40 20 26 20 20 Greatest Overweight (x) 10 | 2 8 4 10 5 5 Average Overweight (x) 3 | . 2 4 4 5 5 Largest Inventory Capacity 25 | 8 25 25 25 25 25 Average Capacity 22 | 7 19 25 25 25 25 Most Carried 25 | 3 12 11 25 25 25 Average Carried 14 | 1 8 9 15 24 24 Final Capacity 25 | 8 25 25 25 25 25 Final Carried 25 | 3 11 9 24 25 25 Class Distribution -------------------- 100% | Mutant Dominant Class ---------------- Mutant | -10/Materials Mutant | -10/Mines Mutant | -9/Materials Mutant | -9/Mines Mutant | -9/Exiles Resources | -11 -10 -10 -9 -9 -9 ----------- Run | Yrd Mat Min Mat Min Exi Matter Collected 1211 | 256 379 18 502 56 . Remotely . | . . . . . . Salvage Created 2139 | 97 553 51 1291 147 . Parts 147 | 10 37 5 79 16 . Haulers Intercepted 6 | . 2 . 4 . . Recyclers Shooed 5 | 1 4 . . . . Parts Field Recycled . | . . . . . . Retrieved Matter . | . . . . . . Parts Self-Destructed . | . . . . . . Prevented . | . . . . . . Kills | -11 -10 -10 -9 -9 -9 ------- Run | Yrd Mat Min Mat Min Exi Combat Hostiles Destroyed 46 | . 11 3 27 5 . Guns 18 | . 11 3 4 . . Cannons 27 | . . . 23 4 . AOE 1 | . . . . 1 . Classes Destroyed 9 | 2 4 . 3 . . Worker 1 | . . . 1 . . Builder 3 | . 2 . 1 . . Tunneler 5 | 2 . . . 3 . Hauler 6 | . 2 . 4 . . Recycler 2 | 1 . . 1 . . Operator 2 | . . . 2 . . Swarmer 16 | . 3 3 6 4 . Grunt 23 | . 8 . 14 1 . Sentry 7 | . . . 7 . . Best Kill Streak 4 | 2 3 2 4 4 . Combat Bots Only 4 | . 3 2 4 4 . Max Kills in Single Turn 2 | 1 2 1 1 2 . Gunslinging 1 | . 1 . . . . Exploded 1 | . . . . 1 . Melee . | . . . . . . Uniques/NPCs Destroyed . | . . . . . . Combat | -11 -10 -10 -9 -9 -9 -------- Run | Yrd Mat Min Mat Min Exi Hostile Shots Fired 252 | . 60 21 162 9 . Missed 64 | . 10 5 44 5 . Hits 188 | . 50 16 118 4 . Projectile 188 | . 50 16 118 4 . Critical Strikes 4 | . 2 . 2 . . Damage Taken 2160 | . 594 120 1413 33 . Core 230 | . 67 22 141 . . Absorbed by Shields . | . . . . . . Core Remaining (%) 82 | 100 . 64 . . . Volleys Fired 187 | 7 66 11 93 10 . Largest 2 | 2 2 2 2 2 . Hottest 140 | 40 60 80 140 89 . Shots Fired 371 | 14 132 22 182 20 1 Gun 223 | 14 132 22 55 . . Cannon 145 | . . . 124 20 1 Launcher . | . . . . . . Special 3 | . . . 3 . . Kinetic 220 | 14 121 8 67 10 . Thermal 3 | . . . 3 . . Explosive . | . . . . . . Electromagnetic 148 | . 11 14 112 10 1 Robot Hit Streak 20 | 3 14 4 20 4 . Robot Miss Streak 6 | 2 6 2 3 2 . Penetration Max . | . . . . . . Secondary Targets 3 | . 1 1 1 . . Max Gunslinging Chain 1 | . 1 1 1 . . Shots Hit Robots 235 | 7 92 13 112 11 . Core Hits 92 | 4 31 3 46 8 . Critical Kills . | . . . . . . Critical Parts Destroyed 2 | . 2 . . . . Critical Strikes 2 | . 2 . . . . Destroy 2 | . 2 . . . . Melee Attacks . | . . . . . . Impact . | . . . . . . Slashing . | . . . . . . Piercing . | . . . . . . Sneak Attacks . | . . . . . . Combat Hostiles . | . . . . . . Follow-up Attacks . | . . . . . . Damage Inflicted 3841 | 72 1017 139 2281 332 . Guns 1571 | 72 1017 139 343 . . Cannons 2018 | . . . 1748 270 . Explosions 252 | . . . 190 62 . Melee . | . . . . . . Ramming . | . . . . . . Kinetic 1888 | 72 907 48 743 118 . Thermal 252 | . . . 190 62 . Explosive . | . . . . . . Electromagnetic 1701 | . 110 91 1348 152 . Impact . | . . . . . . Slashing . | . . . . . . Piercing . | . . . . . . Highest Corruption 1 | . . . 1 1 1 Average Corruption 1 | . . . 1 1 1 Corruption Purged . | . . . . . . Corruption Blocked . | . . . . . . Effects 18 | . . . 11 5 2 Message Errors 5 | . . . 3 2 . Matter Fused 7 | . . . 4 2 1 Heat Flow Errors 3 | . . . 2 1 . Energy Discharges 1 | . . . 1 . . Misfires 1 | . . . . . 1 Weapon Failures 1 | . . . 1 . . Overload Shots . | . . . . . . Overflow Damage 114 | . . . 114 . . Projectiles 2 | . . . 2 . . Explosions 112 | . . . 112 . . Melee . | . . . . . . Knockbacks 9 | . . . 8 1 . Impact . | . . . . . . Kinetic 9 | . . . 8 1 . Secondary . | . . . . . . Self-Inflicted Damage 168 | . . . 168 . . Shots 3 | . . . 3 . . Rammed . | . . . . . . Targets Rammed . | . . . . . . Kicked . | . . . . . . Crushed . | . . . . . . Highest Temperature 393 | . 47 54 393 255 32 Average Temperature 71 | . 12 24 101 91 19 Received Heat Transfer 693 | . 267 . 426 . . Effects 3 | . . . 3 . . Energy Bleed 2 | . . . 2 . . Interference 1 | . . . 1 . . Siege Activations . | . . . . . . Martial Activations . | . . . . . . Shielding Activations . | . . . . . . Robots Disrupted . | . . . . . . Combat Hostiles . | . . . . . . Robots Corrupted . | . . . . . . Combat Hostiles . | . . . . . . Parts Fried 3 | . . . 3 . . Impact Corruptions . | . . . . . . Robots Melted . | . . . . . . Combat Hostiles . | . . . . . . Parts Melted . | . . . . . . Heat Transferred 250 | . . . 150 100 . Parts Sabotaged . | . . . . . . Parts Stolen . | . . . . . . Parts Stripped . | . . . . . . Power Chain Reactions 3 | . . . 2 1 . Alert | -11 -10 -10 -9 -9 -9 ------- Run | Yrd Mat Min Mat Min Exi Maximum Alert Level 1 | . . . 1 1 . Low Security (%) 88 | 100 100 100 73 99 . Level 1 11 | . . . 26 . . Level 2 . | . . . . . . Level 3 . | . . . . . . Level 4 . | . . . . . . Level 5 . | . . . . . . High Security . | . . . . . . Max Security . | . . . . . . Peak Influence 384 | 10 90 51 384 197 . Initial 144 | . . 1 . 144 . Average 80 | 1 21 13 119 123 . Influence Increases 1466 | 15 321 70 867 193 . Destroy 0b10 Robot/C 920 | . 220 60 540 100 . Destroy 0b10 Robot/NC 95 | 15 20 . 45 15 . Destroy Leader 232 | . 44 10 158 20 . Successful Hack 51 | . 22 . 29 . . Disable Machine 60 | . . . 30 30 . Destroy Structure 63 | . . . 35 28 . Lose Combat Pursuer 45 | . 15 . 30 . . Influence Decreases 1466 | 15 315 76 495 490 75 Entered New Map 308 | . . 5 . 228 75 Time Decay 1030 | 15 297 51 405 262 . Lost Part 128 | . 18 20 90 . . Squads Dispatched 7 | . 1 . 5 1 . Investigation 2 | . 1 . . 1 . Extermination . | . . . . . . Reinforcement 5 | . . . 5 . . Assault . | . . . . . . Garrison . | . . . . . . Intercept . | . . . . . . Searches Triggered . | . . . . . . Construction Impeded 1 | . . . 1 . . Haulers Reinforced . | . . . . . . Active Scanning Responses . | . . . . . . Cargo Convoy Interrupts . | . . . . . . Stealth | -11 -10 -10 -9 -9 -9 --------- Run | Yrd Mat Min Mat Min Exi Distress Signals 3 | . 1 . 2 . . Communications Jammed . | . . . . . . Distress Signals . | . . . . . . Times Spotted 71 | . 23 2 41 5 . Peak Tracking Total 6 | . 4 2 6 4 . Tactical Retreats 3 | . 1 . 2 . . Traps | -11 -10 -10 -9 -9 -9 ------- Run | Yrd Mat Min Mat Min Exi Traps Triggered 3 | . 2 . 1 . . Indirectly . | . . . . . . Trap Hack Attempts . | . . . . . . Triggered . | . . . . . . Disarmed . | . . . . . . Reprogrammed . | . . . . . . Reused . | . . . . . . Traps Extracted . | . . . . . . Installed . | . . . . . . Triggered . | . . . . . . Machines | -11 -10 -10 -9 -9 -9 ---------- Run | Yrd Mat Min Mat Min Exi Machines Disabled 4 | . . . 2 2 . Max in Single Turn 2 | . . . 2 2 . Machines Repaired . | . . . . . . Machines Dismantled . | . . . . . . Machines Sabotaged . | . . . . . . Overloaded Fab Kills . | . . . . . . Hacking | -11 -10 -10 -9 -9 -9 --------- Run | Yrd Mat Min Mat Min Exi Machines Accessed 16 | . 6 . 8 1 1 Terminals 14 | . 6 . 8 . . Fabricators . | . . . . . . Repair Stations . | . . . . . . Recycling Units . | . . . . . . Scanalyzers . | . . . . . . Garrison Access . | . . . . . . Total Hacks 42 | . 16 . 24 1 1 Successful 22 | . 6 . 14 1 1 Failed 20 | . 10 . 10 . . Catastrophic 3 | . 2 . 1 . . Database Lockouts . | . . . . . . Manual 26 | . 13 . 12 . 1 Terminals 40 | . 16 . 24 . . Fabricators . | . . . . . . Repair Stations . | . . . . . . Recycling Units . | . . . . . . Scanalyzers . | . . . . . . Garrison Access . | . . . . . . Terminal Hacks 9 | . . . 7 1 1 Open Door 1 | . . . . 1 . Emergency Access Points 1 | . . . 1 . . Alert Level 1 | . . . 1 . . Locate Traps 1 | . . . 1 . . Registered Components 1 | . . . 1 . . Zone Layout 3 | . . . 3 . . Proto ID Catalog 1 | . . . . . 1 Fabricator Hacks . | . . . . . . Repair Station Hacks . | . . . . . . Recycling Unit Hacks . | . . . . . . Scanalyzer . | . . . . . . Garrison Access Hacks . | . . . . . . Unauthorized Hacks 13 | . 6 . 7 . . Terminals 13 | . 6 . 7 . . Skim 13 | . 6 . 7 . . Fabricators . | . . . . . . Repair Stations . | . . . . . . Recycling Units . | . . . . . . Scanalyzers . | . . . . . . Garrison Access . | . . . . . . Data Cores Recovered 1 | . . . 1 . . Used . | . . . . . . Hacking Detections 13 | . 5 . 8 . . Full Trace Events . | . . . . . . Feedback Events . | . . . . . . Feedback Blocked . | . . . . . . Robot Schematics Acquired . | . . . . . . Robots Built . | . . . . . . Authchips . | . . . . . . Time . | . . . . . . Total Robot Build Rating . | . . . . . . Part Schematics Acquired . | . . . . . . Parts Built . | . . . . . . Authchips . | . . . . . . Time . | . . . . . . Total Part Build Rating . | . . . . . . Parts Repaired . | . . . . . . Time . | . . . . . . Parts Recycled . | . . . . . . Recycled Matter . | . . . . . . Retrieved Matter . | . . . . . . Retrieved Components . | . . . . . . Parts Scanalyzed . | . . . . . . Part Schematics Acquired . | . . . . . . Parts Damaged . | . . . . . . Bothacking | -11 -10 -10 -9 -9 -9 ------------ Run | Yrd Mat Min Mat Min Exi Used RIF Installer . | . . . . . . Robots Hacked . | . . . . . . Non-combat . | . . . . . . Combat . | . . . . . . Robot Hacks Applied . | . . . . . . Relay Couplers Released . | . . . . . . Fabnet Peak Effective % . | . . . . . . Robots Rewired . | . . . . . . Allies Hacked . | . . . . . . Hacks Repelled . | . . . . . . Allies | -11 -10 -10 -9 -9 -9 -------- Run | Yrd Mat Min Mat Min Exi Total Allies . | . . . . . . Largest Group . | . . . . . . Highest-Rated Group . | . . . . . . Highest-Rated Ally . | . . . . . . Total Orders . | . . . . . . Ally Attacks . | . . . . . . Total Damage . | . . . . . . Kills . | . . . . . . Allies Corrupted . | . . . . . . Allies Melted . | . . . . . . Intel | -11 -10 -10 -9 -9 -9 ------- Run | Yrd Mat Min Mat Min Exi Active Infowar (turns) 2239 | 11 1132 204 892 . . Terrain 892 | . . . 892 . . Seismic 1614 | 11 1132 204 267 . . Robot Analysis Total . | . . . . . . Derelict Logs Recovered 2 | . . 1 . 1 . Drone Launches . | . . . . . . Drone Recoveries . | . . . . . . Exploration | -11 -10 -10 -9 -9 -9 ------------- Run | Yrd Mat Min Mat Min Exi Turns Passed 3900 | 112 1132 204 1684 578 190 Spaces Moved 1978 | 55 555 116 788 346 118 Core 11 | 11 . . . . . Treads 293 | 44 246 . 3 . . Legs . | . . . . . . Wheels 1674 | . 309 116 785 346 118 Hover . | . . . . . . Flight . | . . . . . . Fastest Speed 50 | 50 110 140 135 155 155 Average Speed 151 | 145 154 140 149 155 155 Slowest Speed 560 | 160 200 140 560 155 155 Overloaded Moves . | . . . . . . Propulsion Burnouts . | . . . . . . Robots Hopped . | . . . . . . Potential Cave-ins . | . . . . . . Cave-ins Triggered . | . . . . . . Exploration Rate (%) 52 | 4 97 36 66 72 39 Regions Visited 5 Branch Regions 3 Pre-discovered Areas 5 | . 1 1 2 1 . Known Exits Taken 2 | . . 1 1 . . Unknown Exits Taken 3 | 1 1 . . 1 . Scrap Searched 3 | . . 1 . 2 . Spaces Dug 3 | . . . 3 . . Terrain Destroyed 69 | . . . 35 34 . Melee . | . . . . . . Projectile 8 | . . . 8 . . AOE 61 | . . . 27 34 . Terrain Rammed . | . . . . . . Walls Destroyed . | . . . . . . Machines Disabled . | . . . . . . Actions | -11 -10 -10 -9 -9 -9 --------- Run | Yrd Mat Min Mat Min Exi Total 2518 | 71 710 138 1102 370 127 Wait 220 | . 57 6 151 6 . Move 1973 | 54 554 115 787 345 118 Hop . | . . . . . . Pick Up 55 | 3 13 2 29 5 3 Fast Attach 15 | 7 2 . 6 . . Attach 19 | . 4 2 13 . . Detach 3 | . 1 . 2 . . Swap 20 | . 6 . 13 . 1 Drop 26 | . 7 2 8 4 5 Fire 187 | 7 66 11 93 10 . Melee . | . . . . . . Ram . | . . . . . . Kick . | . . . . . . Crush . | . . . . . . Escape Stasis . | . . . . . . Rewire . | . . . . . . Trap . | . . . . . . Miscellaneous . | . . . . . . Route ------- -11/Scrapyard -10/Materials (discovered 6 exits: *Mat x3 / [*Min x2] / Sub) -10/Mines (discovered 2 exits: *Mat x2) -9/Materials (discovered 4 exits: *Mat x3 / *Min) -9/Mines (discovered 2 exits: *Mat / *Exi) -9/Exiles (discovered 1 exit: Min) History --------- Turn | Location | Event 18 | -11/Scrapyard | Discovered new exit (range 14) 113 | -11/Scrapyard | Entered Materials 274 | -10/Materials | Discovered new exit (range 16) 303 | -10/Materials | Build established: Mutant 628 | -10/Materials | Discovered new exit (range 12) 788 | -10/Materials | Discovered new exit (range 3) 814 | -10/Materials | Discovered new exit (range 3) 971 | -10/Materials | Discovered new exit (range 13) 1056 | -10/Materials | Identified exit to Subcaves 1108 | -10/Materials | Learned 2 Mines zone layouts 1183 | -10/Materials | Learned location of 2 exits from Subcaves 1218 | -10/Materials | Learned location of Recycling (-8) 1243 | -10/Materials | Loaded intel: 1 trap record 1245 | -10/Materials | Entered Mines 1246 | -10/Mines | Identified exit to Materials 1287 | -10/Mines | Met a Derelict bent on vengeance 1341 | -10/Mines | Learned location of Zion (-6) 1361 | -10/Mines | Assembled infested the area 1366 | -10/Mines | Assisted by a Guerilla fighting off Assembled 1433 | -10/Mines | Discovered exit to Materials (range 15) 1449 | -10/Mines | Entered Materials 1449 | -9/Materials | Evolved 2 slots: Utility x2 1450 | -9/Materials | Identified exit to Mines 1770 | -9/Materials | Lost 5 parts (1p1u3w) 2006 | -9/Materials | Discovered new exit (range 15) 2535 | -9/Materials | Lost 3 parts (1p2n) 2618 | -9/Materials | Discovered new exit (range 10) 3011 | -9/Materials | Learned Recycling recycling unit intel 3049 | -9/Materials | Identified exit to Materials 3049 | -9/Materials | Learned location of 2 exits from Materials 3075 | -9/Materials | Learned location of 3 exits from Materials 3091 | -9/Materials | Loaded intel: 2 recycling unit locations 3112 | -9/Materials | Learned location of Storage (-8) 3133 | -9/Materials | Entered Mines 3315 | -9/Mines | Discovered exit to Materials (range 6) 3331 | -9/Mines | Learned location of 1 exit from Materials 3467 | -9/Mines | Met a Derelict shopkeep closing up shop 3657 | -9/Mines | Found a hidden stash of uninstalled traps 3705 | -9/Mines | Deemed a non-threat by the Exiles lab entrance 3705 | -9/Mines | Discovered new exit (range 5) 3711 | -9/Mines | Entered Exiles 3712 | -9/Exiles | Identified exit to Mines 3761 | -9/Exiles | Met 8R-AWN 3798 | -9/Exiles | Met EX-HEX 3838 | -9/Exiles | Met EX-BIN 3856 | -9/Exiles | Aligned with FarCom system 3858 | -9/Exiles | Given EX-Vault access code 3895 | -9/Exiles | Opened EX-Vault 3901 | -9/Exiles | Self-destructed Last Messages --------------- Modified TNC 0b10 Alert Chip Cloak of Protection Skeleton Box Trap Reconfigurator Supersonic Drone Bay Army-in-a-Box PSU Rigger Chronowheel AWS/Thermal Latent Energy Streamer Gui. Plasma Cannon Firepult YOLO Cannon AWS/Gauss XL Autogun Array AWS/Autocannon Field Lobotomy Kit Longsword +1 Deploy-a-Sentry Map ----- +----------------------------------------------------+ | | | | | | | | | | | | | | | | | | | | | | | | | | | | | | | | | | | | | | | | | | | | | | | ??????????????????????????##?????????????????????? | | ??????????????????????####X####??????????????????? | | ??????????????????????# @ #??????????????????? | | ??????????????????????# ! #??????????????????? | | ??????????????????????# !] #??????????????????? | | ??????????????????????## ##??????????????????? | | ??????????????????????#X #???????????????????? | | ??????????????????????## #???????????????????? | | ???????????????????????# #???????????????????? | | ???????????????????????# #???###?????????????? | | ???????????????????????# #??""""?????????????? | | ???????????????????????# ## """????????????? | | ???????????????????????# X""????????????? | | ???????????????????????# ## """????????????? | | ????????????????#####??# #??""""?????????????? | | ????????????????""""""?# #???#???????????????? | | ????????????????"""" ## #???????????????????? | | ???????????????#""X" #???????????????????? | | ???????????????#" #???????????????????? | | ???????????????#" ## #???????????????????? | | ???????????????#""""""?# #?#########?????????? | | ???????????????##"###??# #?#"""""""#?????????? | | ???????????????????????# #?#"""""""#?????????? | | ???????????????????????# #?#"""""""#?????????? | | ??????????????????????## ###"" """"#?????????? | | ??????????????????????#" """"#?????????? | | ??????????????????????#" """#?????????? | +----------------------------------------------------+ Best States ------------- Heat Dissipation 50 Energy Generation 14 Energy Capacity 265 Matter Stores 300 Matter Capacity 300 Sight Range 16 Terrain Scan Range 16 Terrain Scan Density 10 Armor Coverage 525 Evasion (%) 40 Recoil Reduction 2 Item Schematics ----------------- None Robot Schematics ------------------ None Fabricated ------------ Nothing Repaired ---------- Nothing Alien Tech Used ----------------- None Achievements -------------- None Challenges ------------ None Game ------ Seed TerrainSubdwellerChip Manual? 0 Play Time 00:46:11 Cumulative 65.6 hours Start 2025.06.03 @ 18:04:29 End 2025.06.03 @ 19:35:02 Sessions 1 Manual Loads 0 Difficulty Rogue Special Mode None Game No. 73 Rogue 70 Adventurer 0 Explorer 3 Win Type - Total 0 Types 0/0/0/0/0/0/0/0/0/0 Lore% 11 Gallery% 36 Achievement% 32 Wizard Run 0 Options --------- Layout 0 ASCII 0 Keyboard 0 Movement Numpad Keybinds 0 Fullscreen 0 Font 16/SmallcapsGlow Map View 88x55 Zoom Use 0% Tactical HUD 1 Map Filters NONE Filters NONE Steam 1 RUN: 2a7c3c20-db6c-4804-9414-49d8bdd501e3